Cogmind - Beta 11 X5 @@@ ROGUE MODE // 2021.06.27 @ 12:42:04 Player: Exp. Geonium Core Result: Destroyed by G-47 Trooper with Particle Gun Performance ------------- Evolutions (2) 1000 Regions Visited (4) 800 Robots Destroyed (0) 0 Value Destroyed (10) 10 Prototype IDs (0) 0 Alien Tech Used (0) 0 Bonus (470) 470 TOTAL SCORE: 2280 Bonus ------- Pacifist 470 Cogmind --------- Core Integrity 0/550 Matter 300/300 Energy 99/100 System Corruption 0% Temperature Cool (18) Movement Core (50) Location -8/Materials Parts ------- > --- POWER (1) -------- (None) > --- PROPULSION (2) --- (None) > --- UTILITY (6) ------ (None) > --- WEAPON (2) ------- (None) > --- INVENTORY (5) ---- Flight Unit Hacking Suite System Shield Grenade Launcher Makeshift Spear Peak State ------------ > --- POWER ------------ (None) > --- PROPULSION ------- (None) > --- UTILITY ---------- (None) > --- WEAPON ----------- Makeshift Spear > --- INVENTORY -------- Flight Unit Hacking Suite System Shield Grenade Launcher [Rating: 4] Favorites ----------- Power None Propulsion Light Treads Treads Light Treads Utility None Weapon Grenade Launcher Launcher Grenade Launcher Piercing Weapon Makeshift Spear Build | -11 -10 -9 -9 -8 ------- Run | Scr Mat Mat Min Mat Slots Evolved 4 | . . 2 . 2 Power . | . . . . . Propulsion . | . . . . . Utility 4 | . . 2 . 2 Weapon . | . . . . . Parts Attached 6 | 2 3 . . 1 Power . | . . . . . Engine . | . . . . . Core . | . . . . . Reactor . | . . . . . Propulsion 4 | 2 2 . . . Treads 4 | 2 2 . . . Leg . | . . . . . Wheel . | . . . . . Hover . | . . . . . Flight . | . . . . . Utility . | . . . . . Device . | . . . . . Storage . | . . . . . Processor . | . . . . . Hackware . | . . . . . Protection . | . . . . . Artifact . | . . . . . Weapon 2 | . 1 . . 1 Energy Gun . | . . . . . Energy Cannon . | . . . . . Ballistic Gun . | . . . . . Ballistic Cannon . | . . . . . Launcher 1 | . 1 . . . Special Weapon . | . . . . . Impact Weapon . | . . . . . Slashing Weapon . | . . . . . Piercing Weapon 1 | . . . . 1 Special Melee Weapon . | . . . . . Unidentified Prototypes . | . . . . . Parts Lost 2 | . . . 1 1 Power . | . . . . . Propulsion 2 | . . . 1 1 Utility . | . . . . . Weapon . | . . . . . Highest Loss Streak 1 | . . . 1 1 Average Slot Usage (%) 16 | . 29 33 19 2 Treads 12 | . 28 22 11 2 Launcher 3 | . 1 11 8 . Naked Turns 116 | . 1 . . 115 Heaviest Build 3 | . 3 3 3 2 Greatest Support 40 | 40 40 3 3 3 Greatest Overweight (x) . | . . . . . Average Overweight (x) . | . . . . . Largest Inventory Capacity 5 | 5 5 5 5 5 Average Capacity 5 | 5 5 5 5 5 Most Carried 5 | . 1 . 3 5 Average Carried 1 | . . . . 4 Final Capacity 5 | 5 5 5 5 5 Final Carried 5 | . . . 3 5 Class Distribution -------------------- 100% | Mutant Dominant Class ---------------- Mutant | -10/Materials Mutant | -9/Materials Mutant | -9/Mines Mutant | -8/Materials Resources | -11 -10 -9 -9 -8 ----------- Run | Scr Mat Mat Min Mat Matter Collected 261 | 206 . . 45 10 Remotely . | . . . . . Salvage Created . | . . . . . Parts . | . . . . . Haulers Intercepted . | . . . . . Recyclers Shooed . | . . . . . Parts Field Recycled . | . . . . . Retrieved Matter . | . . . . . Parts Self-Destructed . | . . . . . Prevented . | . . . . . Kills | -11 -10 -9 -9 -8 ------- Run | Scr Mat Mat Min Mat Combat Hostiles Destroyed . | . . . . . Classes Destroyed . | . . . . . Best Kill Streak . | . . . . . Combat Bots Only . | . . . . . Max Kills in Single Turn . | . . . . . Gunslinging . | . . . . . Exploded . | . . . . . Melee . | . . . . . Uniques/NPCs Destroyed . | . . . . . Combat | -11 -10 -9 -9 -8 -------- Run | Scr Mat Mat Min Mat Damage Taken 864 | . 20 123 117 604 Core 597 | . . 17 17 563 Absorbed by Shields . | . . . . . Core Remaining (%) 97 | 100 100 . 91 . Volleys Fired 1 | . 1 . . . Largest 1 | . 1 . . . Hottest 30 | . 30 . . . Shots Fired 1 | . 1 . . . Gun . | . . . . . Cannon . | . . . . . Launcher 1 | . 1 . . . Special . | . . . . . Kinetic . | . . . . . Thermal . | . . . . . Explosive 1 | . 1 . . . Electromagnetic . | . . . . . Robot Hit Streak . | . . . . . Robot Miss Streak . | . . . . . Penetration Max . | . . . . . Secondary Targets . | . . . . . Shots Hit Robots . | . . . . . Core Hits 1 | . . 1 . . Critical Kills . | . . . . . Critical Parts Destroyed . | . . . . . Critical Strikes . | . . . . . Melee Attacks 1 | . . . . 1 Impact . | . . . . . Slashing . | . . . . . Piercing 1 | . . . . 1 Sneak Attacks . | . . . . . Combat Hostiles . | . . . . . Follow-up Attacks . | . . . . . Damage Inflicted 6 | . . 6 . . Guns . | . . . . . Cannons . | . . . . . Explosions . | . . . . . Melee . | . . . . . Ramming 6 | . . 6 . . Kinetic . | . . . . . Thermal . | . . . . . Explosive . | . . . . . Electromagnetic . | . . . . . Impact . | . . . . . Slashing . | . . . . . Piercing . | . . . . . Highest Corruption . | . . . . . Average Corruption . | . . . . . Corruption Purged . | . . . . . Overload Shots . | . . . . . Overflow Damage . | . . . . . Projectiles . | . . . . . Explosions . | . . . . . Melee . | . . . . . Knockbacks . | . . . . . Impact . | . . . . . Kinetic . | . . . . . Secondary . | . . . . . Self-Inflicted Damage 23 | . 20 3 . . Shots 1 | . 1 . . . Rammed 2 | . . 2 . . Targets Rammed 2 | . . 2 . . Kicked . | . . . . . Crushed . | . . . . . Highest Temperature . | . . . . . Average Temperature . | . . . . . Received Heat Transfer 285 | . . 42 . 243 Siege Activations . | . . . . . Robots Corrupted . | . . . . . Combat Hostiles . | . . . . . Parts Fried . | . . . . . Impact Corruptions . | . . . . . Robots Melted . | . . . . . Combat Hostiles . | . . . . . Parts Melted . | . . . . . Heat Transferred . | . . . . . Parts Sabotaged . | . . . . . Parts Stolen . | . . . . . Parts Stripped . | . . . . . Power Chain Reactions . | . . . . . Missiles Intercepted . | . . . . . Alert | -11 -10 -9 -9 -8 ------- Run | Scr Mat Mat Min Mat Peak Influence 239 | . 30 42 36 239 Initial 16 | . . 12 16 13 Average 58 | . 11 24 32 120 Maximum Alert Level 1 | . . . . 1 Low Security (%) 88 | 100 100 100 100 68 Level 1 11 | . . . . 31 Level 2 . | . . . . . Level 3 . | . . . . . Level 4 . | . . . . . Level 5 . | . . . . . High Security . | . . . . . Max Security . | . . . . . Squads Dispatched 7 | . . 1 . 6 Investigation 4 | . . . . 4 Extermination . | . . . . . Reinforcement 3 | . . 1 . 2 Assault . | . . . . . Garrison . | . . . . . Intercept . | . . . . . Construction Impeded . | . . . . . Haulers Reinforced . | . . . . . Cargo Convoy Interrupts . | . . . . . Stealth | -11 -10 -9 -9 -8 --------- Run | Scr Mat Mat Min Mat Distress Signals 2 | . . . . 2 Communications Jammed . | . . . . . Distress Signals . | . . . . . Times Spotted 34 | . . 6 4 24 Peak Tracking Total 16 | . . 6 3 16 Tactical Retreats 2 | . . . 1 1 Traps | -11 -10 -9 -9 -8 ------- Run | Scr Mat Mat Min Mat Traps Triggered 2 | . 1 . . 1 Indirectly . | . . . . . Trap Hack Attempts . | . . . . . Triggered . | . . . . . Disarmed . | . . . . . Reprogrammed . | . . . . . Reused . | . . . . . Traps Extracted . | . . . . . Installed . | . . . . . Triggered . | . . . . . Machines | -11 -10 -9 -9 -8 ---------- Run | Scr Mat Mat Min Mat Machines Disabled 1 | . 1 . . . Max in Single Turn 1 | . 1 . . . Machines Sabotaged . | . . . . . Garrisons Compromised . | . . . . . Overloaded Fab Kills . | . . . . . Fab Network Shutdowns . | . . . . . Hacking | -11 -10 -9 -9 -8 --------- Run | Scr Mat Mat Min Mat Machines Accessed 8 | . 1 . . 7 Terminals 8 | . 1 . . 7 Fabricators . | . . . . . Repair Stations . | . . . . . Recycling Units . | . . . . . Scanalyzers . | . . . . . Garrison Access . | . . . . . Total Hacks 33 | . 3 . . 30 Successful 14 | . 3 . . 11 Failed 19 | . . . . 19 Catastrophic 1 | . . . . 1 Database Lockouts . | . . . . . Manual 26 | . 2 . . 24 Terminals 33 | . 3 . . 30 Fabricators . | . . . . . Repair Stations . | . . . . . Recycling Units . | . . . . . Scanalyzers . | . . . . . Garrison Access . | . . . . . Terminal Hacks 10 | . 3 . . 7 Part Schematic 1 | . . . . 1 Level Access Points 2 | . 1 . . 1 Branch Access Points 1 | . 1 . . . Emergency Access Points 2 | . . . . 2 Terminal Index 1 | . . . . 1 Zone Layout 3 | . 1 . . 2 Fabricator Hacks . | . . . . . Repair Station Hacks . | . . . . . Recycling Unit Hacks . | . . . . . Scanalyzer . | . . . . . Garrison Access Hacks . | . . . . . Unauthorized Hacks 4 | . . . . 4 Terminals 4 | . . . . 4 Botnet 2 | . . . . 2 Disrupt 1 | . . . . 1 Operators 1 | . . . . 1 Fabricators . | . . . . . Repair Stations . | . . . . . Recycling Units . | . . . . . Scanalyzers . | . . . . . Garrison Access . | . . . . . Data Cores Recovered . | . . . . . Used . | . . . . . Hacking Detections 7 | . . . . 7 Full Trace Events 4 | . . . . 4 Feedback Events . | . . . . . Feedback Blocked . | . . . . . Robot Schematics Acquired . | . . . . . Robots Built . | . . . . . Matter . | . . . . . Time . | . . . . . Total Robot Build Rating . | . . . . . Part Schematics Acquired 1 | . . . . 1 Parts Built . | . . . . . Matter . | . . . . . Time . | . . . . . Total Part Build Rating . | . . . . . Parts Repaired . | . . . . . Time . | . . . . . Parts Recycled . | . . . . . Recycled Matter . | . . . . . Retrieved Matter . | . . . . . Retrieved Components . | . . . . . Parts Scanalyzed . | . . . . . Part Schematics Acquired . | . . . . . Parts Damaged . | . . . . . Bothacking | -11 -10 -9 -9 -8 ------------ Run | Scr Mat Mat Min Mat Used RIF Installer . | . . . . . Robots Hacked . | . . . . . Non-combat . | . . . . . Combat . | . . . . . Robot Hacks Applied . | . . . . . Relay Couplers Released . | . . . . . Robots Rewired . | . . . . . Allies Hacked . | . . . . . Hacks Repelled . | . . . . . Allies | -11 -10 -9 -9 -8 -------- Run | Scr Mat Mat Min Mat Total Allies . | . . . . . Largest Group . | . . . . . Highest-Rated Group . | . . . . . Highest-Rated Ally . | . . . . . Total Orders . | . . . . . Ally Attacks . | . . . . . Total Damage . | . . . . . Kills . | . . . . . Allies Corrupted . | . . . . . Allies Melted . | . . . . . Intel | -11 -10 -9 -9 -8 ------- Run | Scr Mat Mat Min Mat Robot Analysis Total . | . . . . . Derelict Logs Recovered . | . . . . . Drone Launches . | . . . . . Drone Recoveries . | . . . . . Exploration | -11 -10 -9 -9 -8 ------------- Run | Scr Mat Mat Min Mat Turns Passed 412 | 24 103 23 106 156 Spaces Moved 548 | 28 85 43 94 298 Core 493 | 22 36 43 94 298 Treads 55 | 6 49 . . . Legs . | . . . . . Wheels . | . . . . . Hover . | . . . . . Flight . | . . . . . Fastest Speed 50 | 50 50 50 50 50 Average Speed 61 | 73 113 50 50 50 Slowest Speed 160 | 160 160 50 50 50 Overloaded Moves . | . . . . . Propulsion Burnouts . | . . . . . Robots Hopped . | . . . . . Cave-ins Triggered . | . . . . . Exploration Rate (%) 17 | 3 17 12 16 41 Regions Visited 4 Branch Regions 1 Pre-discovered Areas . | . . . . . Known Exits Taken 1 | . 1 . . . Unknown Exits Taken 3 | 1 . 1 1 . Scrap Searched . | . . . . . Spaces Dug 6 | . 5 . . 1 Terrain Destroyed 6 | . 5 . . 1 Melee 1 | . . . . 1 Projectile . | . . . . . AOE 5 | . 5 . . . Terrain Rammed . | . . . . . Walls Destroyed . | . . . . . Machines Disabled . | . . . . . Actions | -11 -10 -9 -9 -8 --------- Run | Scr Mat Mat Min Mat Total 618 | 29 89 44 152 304 Wait 57 | . . . 56 1 Move 545 | 27 84 43 93 298 Hop . | . . . . . Pick Up 5 | . 1 . 2 2 Fast Attach 4 | 2 2 . . . Attach 2 | . 1 . . 1 Detach 2 | . . . 1 1 Swap . | . . . . . Drop . | . . . . . Fire 1 | . 1 . . . Melee 1 | . . . . 1 Ram 1 | . . 1 . . Kick . | . . . . . Crush . | . . . . . Escape Stasis . | . . . . . Rewire . | . . . . . Trap . | . . . . . Miscellaneous . | . . . . . Route ------- -11/Scrapyard -10/Materials (discovered 4 exits: *Mat x3 / Min) -9/Materials -9/Mines -8/Materials (discovered 3 exits: *Fac x3) History --------- Turn | Location | Event 12 | -11/Scrapyard | Discovered new exit (range 16) 25 | -11/Scrapyard | Entered Materials 61 | -10/Materials | Identified exit to Mines 61 | -10/Materials | Identified exit to Materials 128 | -10/Materials | Entered another Materials area 128 | -9/Materials | Evolved 2 slots: Utility x2 143 | -9/Materials | Discovered new exit (range 16) 151 | -9/Materials | Entered Mines 152 | -9/Mines | Assembled infested the area 157 | -9/Mines | Assisted by a Guerilla fighting off Assembled 160 | -9/Mines | A weapon hastily lodged in a ceiling crevice suddenly fell to the ground 250 | -9/Mines | Discovered new exit (range 5) 257 | -9/Mines | Entered Materials 257 | -8/Materials | Evolved 2 slots: Utility x2 316 | -8/Materials | Build established: Mutant 384 | -8/Materials | Core integrity fell below 50% 404 | -8/Materials | Identified exit to Factory 410 | -8/Materials | Core integrity fell below 20% 413 | -8/Materials | Destroyed by G-47 Trooper with Particle Gun Last Messages --------------- Investigation squad. 00362_ W-25 Informer sends out distress signal. 00365_ K-01 Serf collects debris. 00374_ K-01 Serf cleans the Fusion Modulator. 00377_ K-01 Serf destroyed. 00390_ Connecting with Terminal... 00390_ ALERT: Suspicious activity at Terminal M007. Dispatching Investigation squad. 00394_ Triggered Blade Trap. 00394_ Massive razor-sharp blades shoot up from within the floor. 00404_ Connecting with Terminal... >>Access(Main) Found 3 level access points to Factory: (79,86) (16,5) (8,87) Map updated. 00404_ Connecting with Terminal... 00404_ ALERT: Suspicious activity at Terminal M003. Dispatching Investigation squad. Map ----- +----------------------------------------------------+ | ###### / # # # T ###????? | | #????# ####+### # ! # #??????? | | #????## + """# """ #??????? | | /####### ### # """# """"" #??????? | | #?# # """# """"" #??????? | | #?## ## " """"" #??????? | | ##### #??# #####/### """ #??????? | | ### #???# #??# #???# #?# #??????? | | ## ##??# #??# ##### #####/#######??????? | | # #??# #??# #????????????? | | # #??# #??# ####### #????????????? | | / #??# #?? #?????# #????????????? | | # #??#+##+#??!!!]]#?????# #????????????? | | # #?????????!!!!]]#?????# #????????????? | | #### ###?????????#######?????# #????????????? | | "" # #???????????????????????# #????????????? | | R" # ###?????????????????????######????????????? | | " + ???????????????????????????????????????? | | # ???????????????????????????????????????? | | # ???????????????????????????????????????? | | # ???????????????????????????????????????? | | #### ???????????????????????????????????????? | | ???# #######????????????????????????????????? | | #### ? ################?????????????????? | | # ######## g g #?????????????????? | | "" # # # gg g @ < #?????????????????? | | ???+ / + g #?????????????????? | | ???# # # #########+######?????????????????? | | ???# # # #????????????????????????????????? | | ???# # "T" # #????????????????????????????????? | | ???# # """ # #????????????????????????????????? | | #### ######## #????????????????????????????????? | | #??????# #????????????????????????????????? | | ######???????+?????????????????????????????????? | | ???????????????????????????????????????????????? | | ???????????????????????????????????????????????? | | ???????????????????????????????????????????????? | | ???????????????????????????????????????????????? | | ???????????????????????????????????????????????? | | | | | | | | | | | | | | | | | | | | | | | +----------------------------------------------------+ Best States ------------- Heat Dissipation 31 Energy Generation 5 Energy Capacity 100 Matter Stores 300 Matter Capacity 300 Sight Range 16 Terrain Scan Density 10 Evasion (%) 50 Recoil Reduction 2 Item Schematics ----------------- Hacking Suite | -8/Materials | Hacked Robot Schematics ------------------ None Fabricated ------------ Nothing Alien Tech Used ----------------- None Achievements -------------- None Challenges ------------ None Game ------ Seed SeismicFlightStorage Manual? 0 Play Time 00:09:26 Cumulative 128.9 hours Start 2021.06.27 @ 12:32:05 End 2021.06.27 @ 12:42:04 Sessions 1 Manual Loads 0 Difficulty Rogue Special Mode None Game No. 194 Rogue 194 Adventurer 0 Explorer 0 Win Type - Total 5 Types 4/0/0/1/0/0/0/0/0 Lore% 50 Gallery% 73 Achievement% 59 Wizard Run 0 Options --------- ASCII 0 Keyboard 0 Movement Numpad Keybinds 0 Fullscreen 1 Font 18/Terminus Map View 76x50 Tactical HUD 1 Map Filters NONE Filters NONE Steam 1 RUN: f480256f-64ad-4f4b-a7c1-a557cf872c52